Cogmind - Beta 13 @@@ ROGUE MODE // 2024.04.01 @ 19:03:40 Player: Neurotypical Result: Destroyed by G-47 Trooper with Particle Gun Performance ------------- Evolutions (1) 500 Regions Visited (3) 600 Robots Destroyed (28) 140 Value Destroyed (431) 431 Prototype IDs (0) 0 Alien Tech Used (0) 0 Bonus (0) 0 TOTAL SCORE: 1671 Bonus ------- None Cogmind --------- Core Integrity 0/400 Matter 280/300 Energy 97/100 System Corruption 1% Temperature Warm (122) Movement Core (50) Location -9/Materials Parts ------- > --- POWER (1) -------- (None) > --- PROPULSION (3) --- (None) > --- UTILITY (3) ------ Signal Interpreter > --- WEAPON (2) ------- Small Laser > --- INVENTORY (5) ---- Light Ion Engine Visual Processing Unit Sensor Array Peak State ------------ > --- POWER ------------ Light Ion Engine > --- PROPULSION ------- Wheel Wheel Wheel > --- UTILITY ---------- Structural Scanner Sensor Array Signal Interpreter > --- WEAPON ----------- Small Laser Light Assault Rifle > --- INVENTORY -------- Light Ion Engine Wheel [Rating: 9] Favorites ----------- Power Light Ion Engine Engine Light Ion Engine Propulsion Wheel Wheel Wheel Utility Signal Interpreter Device Sensor Array Storage Small Matter Pod Processor Signal Interpreter Protection Light Armor Plating Weapon Light Assault Rifle Energy Gun Small Laser Ballistic Gun Light Assault Rifle Launcher Grenade Launcher Build | -11 -10 -10 -9 ------- Run | Yrd Mat Min Mat Slots Evolved 2 | . . . 2 Power . | . . . . Propulsion 1 | . . . 1 Utility 1 | . . . 1 Weapon . | . . . . Parts Attached 37 | 8 9 11 9 Power 6 | 1 1 2 2 Engine 6 | 1 1 2 2 Core . | . . . . Reactor . | . . . . Propulsion 11 | 3 1 5 2 Treads . | . . . . Leg . | . . . . Wheel 11 | 3 1 5 2 Hover . | . . . . Flight . | . . . . Utility 10 | 2 5 1 2 Device 5 | 1 2 1 1 Storage 2 | 1 1 . . Processor 1 | . 1 . . Hackware . | . . . . Protection 2 | . 1 . 1 Artifact . | . . . . Weapon 10 | 2 2 3 3 Energy Gun 4 | . . 1 3 Energy Cannon . | . . . . Ballistic Gun 5 | 2 1 2 . Ballistic Cannon . | . . . . Launcher 1 | . 1 . . Special Weapon . | . . . . Impact Weapon . | . . . . Slashing Weapon . | . . . . Piercing Weapon . | . . . . Special Melee Weapon . | . . . . Unidentified Prototypes . | . . . . Parts Lost 23 | . 1 9 13 Power 4 | . . 1 3 Propulsion 8 | . . 4 4 Utility 3 | . . 1 2 Weapon 8 | . 1 3 4 Highest Loss Streak 12 | . 1 6 12 To Critical Strikes . | . . . . Average Slot Usage (%) 90 | . 100 85 88 Engine 11 | . 14 12 10 Wheel 25 | . 28 19 27 Device 14 | . 13 10 17 Storage 1 | . 3 . . Processor 10 | . 7 14 11 Energy Gun 6 | . . 5 10 Ballistic Gun 15 | . 18 21 10 Launcher 2 | . 9 . . Naked Turns . | . . . . Heaviest Build 13 | 7 13 8 7 Greatest Support 32 | 20 20 32 30 Greatest Overweight (x) 1 | . . 1 1 Average Overweight (x) . | . . . . Largest Inventory Capacity 5 | 5 5 5 5 Average Capacity 5 | 5 5 5 5 Most Carried 5 | 5 5 5 5 Average Carried 3 | 3 4 3 3 Final Capacity 5 | 5 5 5 5 Final Carried 4 | 4 3 3 3 Class Distribution -------------------- 60% | Mutant 23% | Scavenger-Skirmisher 15% | Scavenger-Mutant Dominant Class ---------------- Mutant | -10/Materials Mutant | -10/Mines Scavenger-Skirmisher | -9/Materials Resources | -11 -10 -10 -9 ----------- Run | Yrd Mat Min Mat Matter Collected 758 | 350 104 253 51 Remotely . | . . . . Salvage Created 703 | 70 154 313 166 Parts 53 | 6 18 21 8 Haulers Intercepted . | . . . . Recyclers Shooed 1 | . . 1 . Parts Field Recycled . | . . . . Retrieved Matter . | . . . . Parts Self-Destructed . | . . . . Prevented . | . . . . Kills | -11 -10 -10 -9 ------- Run | Yrd Mat Min Mat Combat Hostiles Destroyed 16 | 1 8 4 3 Guns 11 | 1 3 4 3 AOE 5 | . 5 . . Classes Destroyed 7 | 2 3 2 . Worker 5 | 1 1 2 1 Builder 2 | . 1 1 . Tunneler 1 | . . 1 . Recycler 2 | . . 2 . Watcher 2 | . 2 . . Swarmer 8 | . 5 3 . Grunt 8 | 1 3 1 3 Best Kill Streak 4 | 1 4 3 3 Combat Bots Only 4 | 1 4 3 3 Max Kills in Single Turn 2 | 1 2 1 1 Gunslinging . | . . . . Exploded 1 | . 1 . . Melee . | . . . . Uniques/NPCs Destroyed . | . . . . Combat | -11 -10 -10 -9 -------- Run | Yrd Mat Min Mat Hostile Shots Fired 183 | 7 33 30 113 Missed 47 | 4 9 9 25 Damage Taken 1968 | 32 280 519 1137 Core 600 | 22 52 116 410 Absorbed by Shields . | . . . . Core Remaining (%) 57 | 91 . 24 . Volleys Fired 93 | 10 21 31 31 Largest 2 | 2 2 2 2 Hottest 80 | 40 50 60 80 Shots Fired 167 | 20 37 61 49 Gun 153 | 20 23 61 49 Cannon . | . . . . Launcher 14 | . 14 . . Special . | . . . . Kinetic 119 | 20 23 53 23 Thermal 34 | . . 8 26 Explosive 14 | . 14 . . Electromagnetic . | . . . . Robot Hit Streak 14 | 5 5 14 10 Robot Miss Streak 3 | 2 3 3 3 Penetration Max . | . . . . Secondary Targets . | . . . . Shots Hit Robots 108 | 12 20 41 35 Core Hits 45 | 4 14 17 10 Critical Kills . | . . . . Critical Parts Destroyed 3 | 1 . 2 . Critical Strikes 3 | 1 . 2 . Destroy 3 | 1 . 2 . Melee Attacks . | . . . . Impact . | . . . . Slashing . | . . . . Piercing . | . . . . Sneak Attacks . | . . . . Combat Hostiles . | . . . . Follow-up Attacks . | . . . . Damage Inflicted 1508 | 95 695 358 360 Guns 909 | 95 96 358 360 Cannons . | . . . . Explosions 599 | . 599 . . Melee . | . . . . Ramming . | . . . . Kinetic 627 | 95 96 302 134 Thermal 282 | . . 56 226 Explosive 599 | . 599 . . Electromagnetic . | . . . . Impact . | . . . . Slashing . | . . . . Piercing . | . . . . Highest Corruption 4 | . 4 4 1 Average Corruption 2 | . 3 4 1 Corruption Purged . | . . . . Corruption Blocked . | . . . . Effects 14 | . 1 9 4 Message Errors 2 | . 1 . 1 Matter Fused 2 | . . 2 . Heat Flow Errors 3 | . . 3 . Energy Discharges 1 | . . . 1 Data Loss (minor) 2 | . . 1 1 Data Loss (major) 1 | . . . 1 Misfires 1 | . . 1 . Weapon Failures 2 | . . 2 . Overload Shots . | . . . . Overflow Damage 15 | . 15 . . Projectiles . | . . . . Explosions 15 | . 15 . . Melee . | . . . . Knockbacks . | . . . . Impact . | . . . . Kinetic . | . . . . Secondary . | . . . . Self-Inflicted Damage . | . . . . Shots . | . . . . Rammed . | . . . . Targets Rammed . | . . . . Kicked . | . . . . Crushed . | . . . . Highest Temperature 275 | 6 49 275 117 Average Temperature 56 | 6 13 103 47 Received Heat Transfer 816 | 18 84 42 672 Effects 1 | . . 1 . Energy Bleed 1 | . . 1 . Siege Activations . | . . . . Robots Corrupted . | . . . . Combat Hostiles . | . . . . Parts Fried . | . . . . Impact Corruptions . | . . . . Robots Melted . | . . . . Combat Hostiles . | . . . . Parts Melted 1 | . . . 1 Heat Transferred 637 | . . 125 512 Parts Sabotaged . | . . . . Parts Stolen . | . . . . Parts Stripped . | . . . . Power Chain Reactions . | . . . . Alert | -11 -10 -10 -9 ------- Run | Yrd Mat Min Mat Peak Influence 378 | 25 378 235 146 Initial 145 | . 16 145 91 Average 111 | 16 172 212 90 Maximum Alert Level 1 | . 1 1 . Low Security (%) 74 | 100 51 13 100 Level 1 25 | . 48 86 . Level 2 . | . . . . Level 3 . | . . . . Level 4 . | . . . . Level 5 . | . . . . High Security . | . . . . Max Security . | . . . . Squads Dispatched 4 | . 3 . 1 Investigation 2 | . 2 . . Extermination . | . . . . Reinforcement 2 | . 1 . 1 Assault . | . . . . Garrison . | . . . . Intercept . | . . . . Searches Triggered . | . . . . Construction Impeded . | . . . . Haulers Reinforced . | . . . . Active Scanning Responses . | . . . . Cargo Convoy Interrupts . | . . . . Stealth | -11 -10 -10 -9 --------- Run | Yrd Mat Min Mat Distress Signals 3 | . 1 . 2 Communications Jammed . | . . . . Distress Signals . | . . . . Times Spotted 44 | 1 17 11 15 Peak Tracking Total 9 | 1 4 3 9 Tactical Retreats 8 | . 1 3 4 Traps | -11 -10 -10 -9 ------- Run | Yrd Mat Min Mat Traps Triggered 3 | . 2 . 1 Indirectly . | . . . . Trap Hack Attempts . | . . . . Triggered . | . . . . Disarmed . | . . . . Reprogrammed . | . . . . Reused . | . . . . Traps Extracted . | . . . . Installed . | . . . . Triggered . | . . . . Machines | -11 -10 -10 -9 ---------- Run | Yrd Mat Min Mat Machines Disabled . | . . . . Max in Single Turn . | . . . . Machines Repaired . | . . . . Machines Dismantled . | . . . . Machines Sabotaged . | . . . . Overloaded Fab Kills . | . . . . Hacking | -11 -10 -10 -9 --------- Run | Yrd Mat Min Mat Machines Accessed 5 | . 2 1 2 Terminals 3 | . 2 1 . Fabricators . | . . . . Repair Stations . | . . . . Recycling Units 1 | . . . 1 Scanalyzers 1 | . . . 1 Garrison Access . | . . . . Total Hacks 16 | . 4 3 9 Successful 8 | . 2 1 5 Failed 8 | . 2 2 4 Catastrophic 1 | . 1 . . Database Lockouts . | . . . . Manual 2 | . . . 2 Terminals 7 | . 4 3 . Fabricators . | . . . . Repair Stations . | . . . . Recycling Units 4 | . . . 4 Scanalyzers 5 | . . . 5 Garrison Access . | . . . . Terminal Hacks 3 | . 2 1 . Record 2 | . 1 1 . Emergency Access Points 1 | . 1 . . Fabricator Hacks . | . . . . Repair Station Hacks . | . . . . Recycling Unit Hacks 1 | . . . 1 Report Inventory 1 | . . . 1 Scanalyzer 4 | . . . 4 Insert Component 2 | . . . 2 Analyze 2 | . . . 2 Garrison Access Hacks . | . . . . Unauthorized Hacks . | . . . . Terminals . | . . . . Fabricators . | . . . . Repair Stations . | . . . . Recycling Units . | . . . . Scanalyzers . | . . . . Garrison Access . | . . . . Data Cores Recovered . | . . . . Used . | . . . . Hacking Detections 4 | . 2 1 1 Full Trace Events 1 | . 1 . . Feedback Events . | . . . . Feedback Blocked . | . . . . Robot Schematics Acquired . | . . . . Robots Built . | . . . . Authchips . | . . . . Time . | . . . . Total Robot Build Rating . | . . . . Part Schematics Acquired 2 | . . . 2 Parts Built . | . . . . Authchips . | . . . . Time . | . . . . Total Part Build Rating . | . . . . Parts Repaired . | . . . . Time . | . . . . Parts Recycled . | . . . . Recycled Matter . | . . . . Retrieved Matter . | . . . . Retrieved Components . | . . . . Parts Scanalyzed 2 | . . . 2 Part Schematics Acquired 2 | . . . 2 Parts Damaged . | . . . . Bothacking | -11 -10 -10 -9 ------------ Run | Yrd Mat Min Mat Used RIF Installer . | . . . . Robots Hacked . | . . . . Non-combat . | . . . . Combat . | . . . . Robot Hacks Applied . | . . . . Relay Couplers Released . | . . . . Fabnet Peak Effective % . | . . . . Robots Rewired . | . . . . Allies Hacked . | . . . . Hacks Repelled . | . . . . Allies | -11 -10 -10 -9 -------- Run | Yrd Mat Min Mat Total Allies . | . . . . Largest Group . | . . . . Highest-Rated Group . | . . . . Highest-Rated Ally . | . . . . Total Orders . | . . . . Ally Attacks . | . . . . Total Damage . | . . . . Kills . | . . . . Allies Corrupted . | . . . . Allies Melted . | . . . . Intel | -11 -10 -10 -9 ------- Run | Yrd Mat Min Mat Robot Analysis Total . | . . . . Derelict Logs Recovered 1 | . . 1 . Drone Launches . | . . . . Drone Recoveries . | . . . . Exploration | -11 -10 -10 -9 ------------- Run | Yrd Mat Min Mat Turns Passed 1430 | 355 286 270 519 Spaces Moved 1218 | 232 264 206 516 Core 80 | 21 . 50 9 Treads . | . . . . Legs . | . . . . Wheels 1138 | 211 264 156 507 Hover . | . . . . Flight . | . . . . Fastest Speed 50 | 50 80 50 50 Average Speed 79 | 77 80 80 79 Slowest Speed 100 | 80 80 100 100 Overloaded Moves . | . . . . Propulsion Burnouts . | . . . . Robots Hopped . | . . . . Cave-ins Triggered . | . . . . Exploration Rate (%) 26 | 14 37 31 25 Regions Visited 3 Branch Regions 1 Pre-discovered Areas 1 | . . 1 . Known Exits Taken 2 | . 1 1 . Unknown Exits Taken 1 | 1 . . . Scrap Searched . | . . . . Spaces Dug . | . . . . Terrain Destroyed 99 | . 99 . . Melee . | . . . . Projectile . | . . . . AOE 99 | . 99 . . Terrain Rammed . | . . . . Walls Destroyed . | . . . . Machines Disabled . | . . . . Actions | -11 -10 -10 -9 --------- Run | Yrd Mat Min Mat Total 1536 | 391 306 260 579 Wait 144 | 127 2 . 15 Move 1215 | 231 263 205 516 Hop . | . . . . Pick Up 37 | 13 5 11 8 Fast Attach . | . . . . Attach 27 | 7 3 9 8 Detach . | . . . . Swap 10 | 1 6 2 1 Drop 10 | 2 6 2 . Fire 93 | 10 21 31 31 Melee . | . . . . Ram . | . . . . Kick . | . . . . Crush . | . . . . Escape Stasis . | . . . . Rewire . | . . . . Trap . | . . . . Miscellaneous . | . . . . Route ------- -11/Scrapyard -10/Materials -10/Mines -9/Materials History --------- Turn | Location | Event 2 | -11/Scrapyard | Met Revision 17 117 | -11/Scrapyard | Discovered new exit (range 8) 356 | -11/Scrapyard | Entered Materials 357 | -10/Materials | Build established: Mutant 499 | -10/Materials | Discovered new exit (range 15) 572 | -10/Materials | Identified exit to Mines 642 | -10/Materials | Entered Mines 713 | -10/Mines | Met a Derelict bent on vengeance 734 | -10/Mines | Discovered new exit (range 7) 796 | -10/Mines | Assembled infested the area 815 | -10/Mines | Core integrity fell below 50% 847 | -10/Mines | Lost 6 parts (1p2n1u2w) 910 | -10/Mines | Identified exit to Materials 912 | -10/Mines | Entered Materials 912 | -9/Materials | Evolved 2 slots: Propulsion x1, Utility x1 1357 | -9/Materials | Build established: Scavenger-Skirmisher 1405 | -9/Materials | Core integrity fell below 50% 1421 | -9/Materials | Core integrity fell below 20% 1431 | -9/Materials | Destroyed by G-47 Trooper with Particle Gun Last Messages --------------- Lgt. Assault Rifle destroyed. Acquired 18 matter. Lgt. Ion Engine destroyed. Acquired Particle Gun. Structural Scanner destroyed. G-34 Mercenary destroyed. Critical hit (Burn: +37). Acquired Sml. Laser. Particle Gun destroyed. Acquired Ion Engine. System corrupted: Component data lost. R-06 Scavenger collects Aluminum Leg. Acquired Sml. Laser. R-06 Scavenger collects Aluminum Leg. Aluminum Leg melted. G-34 Mercenary destroyed. R-06 Scavenger collects Aluminum Leg. Sml. Laser destroyed. R-06 Scavenger collects Aluminum Leg. Ion Engine destroyed. Map ----- +----------------------------------------------------+ | ???????????????????????????? | | ???????????????????????????? | | ???????????????????????????? | | ???????????????????????????? | | ???????????????????????????? | | ???????????????????????????? | | ???????????????????????????? | | ???????????????????????????? | | ???????????????????????????? | | ???????????????????? ?????? | | ???????????????????? ?????? | | ?????????????????? # ?????? | | ??????????????????## ?????? | | ?????????????????? # ?????? | | ?????????????????? # ?????? | | ?????????????????? + ???? | | ???????????????? # ##???? | | ???????????????? # ##???? | | ???????????????? # ###### | | ???????????????? # ###### | | ???????????????? # # # | | ????????????????## # # | | ##??????????????## #%% # | | ##?????????????? # # g # | | ##?????????????? + + g=%# | | ##?????????????? # # %@ # | | ##?????????????? # # # | | ##?????????????? # # # | | ################## # # | | ################## ###### | | # # | | # # | | ##########+####### # # | | ##### # # # | | ##???????"""???? # + # | | ##?????? """ ??? # # # | | ##?????? """ ??? # # # | | ##### # # # | | ################## # # | | ## # #+#### | | ##"" # #### | | ##"Y # ##?? | | ##/############"" # ##?? | | ######### # ##?? | | ##?????####+## ##?? | | """" ##?????## ##?? | | """" ######### ##?? | | """" #########+####+## ##?? | | ### # ##?? | | ### """ """ """ # ##?? | +----------------------------------------------------+ Best States ------------- Heat Dissipation 35 Energy Generation 10 Energy Capacity 250 Matter Stores 350 Matter Capacity 400 Sight Range 16 Robot Scan Range 14 Terrain Scan Density 10 Armor Coverage 225 Evasion (%) 50 Item Schematics ----------------- Wheel | -9/Materials | Scanalyzed Lgt. Ion Engine | -9/Materials | Scanalyzed Robot Schematics ------------------ None Fabricated ------------ Nothing Alien Tech Used ----------------- None Achievements -------------- I Survived The Infestation Challenges ------------ None Game ------ Seed SegregatorAntigravBoregun Manual? 0 Play Time 00:39:38 Cumulative 1.9 hours Start 2024.04.01 @ 18:23:12 End 2024.04.01 @ 19:03:40 Sessions 1 Manual Loads 0 Difficulty Rogue Special Mode None Game No. 2 Rogue 2 Adventurer 0 Explorer 0 Win Type - Total 0 Types 0/0/0/0/0/0/0/0/0 Lore% 0 Gallery% 3 Achievement% 4 Wizard Run 0 Options --------- Layout 1 ASCII 0 Keyboard 0 Movement Arrows Keybinds 0 Fullscreen 1 Font 24/Proggy Map View 50x35 Zoom Use 0% Tactical HUD 0 Map Filters NONE Filters NONE Steam 1 RUN: 3de59c1d-c79a-4ccc-b6ff-05d70c50ad77